bitfinex-derivatives/quotes_ETHF0:USTF0_20250411
["timestamp","ask_amount","ask_price","bid_price","bid_amount"]
[1744348936564,1.66650968,1542.8,1542.7,1.29743]
[1744348936769,0.00970968,1542.8,1542.7,1.29743]
[1744348936968,0.00970968,1542.8,1542.7,8.83643]
[1744348937168,0.00970968,1542.8,1542.7,3.83643]
[1744348938974,0.00970968,1542.8,1542.7,13.03623]
[1744348939475,0.00970968,1542.8,1542.7,58.83623]
[1744348940775,0.00970968,1542.8,1542.7,50.62843]
[1744348941170,1.59680968,1542.8,1542.7,42.09743]
[1744348945779,6.10195968,1542.8,1542.7,40.8]
[1744348946373,1.29743,1542.7,1542.6,9.99776836]
[1744348946576,1.6314,1542.7,1542.6,1.29752]
[1744348946777,1.6314,1542.7,1542.6,42.09752]
[1744348952578,0.00970968,1542.8,1542.6,42.09752]
[1744348952579,0.00970968,1542.8,1542.7,1.29743]
[1744348952884,0.00970968,1542.8,1542.7,8.34933]
[1744348953586,0.00970968,1542.8,1542.7,14.34133]
[1744348953882,0.00970968,1542.8,1542.7,17.54913]
[1744348954582,0.00970968,1542.8,1542.7,22.54913]
[1744348956085,7.58836458,1543.1,1543.0,1.29718]
[1744348956281,7.5752523,1543.1,1543.0,5.85618]
[1744348956687,7.5752523,1543.1,1543.0,7.57368]
[1744348957189,1.72450968,1543.2,1543.1,1.2971]
[1744348957383,1.72450968,1543.2,1543.1,3.8502]
[1744348959484,1.72450968,1543.2,1543.1,9.8422]
[1744348962082,4.93230968,1543.2,1543.1,5.992]
[1744348962586,1.72450968,1543.2,1543.1,5.992]
[1744348963289,1.72450968,1543.2,1543.1,7.2891]
[1744348963677,4.93230968,1543.2,1543.1,1.2971]
[1744348963881,4.93230968,1543.2,1543.0,5.85613]
[1744348964081,2.4565,1543.1,1543.0,5.85613]
[1744348965089,2.4565,1543.1,1543.0,4.559]
[1744348966692,3.75362,1543.1,1542.9,0.00970968]
[1744348966889,2.3899,1543.0,1542.9,0.00970968]
[1744348968788,2.3899,1543.0,1542.9,1.30697968]
[1744348968983,5.5977,1543.0,1542.9,1.30697968]
[1744348969183,5.5977,1543.0,1542.9,0.00970968]
[1744348969992,2.3899,1543.0,1542.9,0.00970968]
[1744348970889,2.3899,1543.0,1542.9,1.30697968]
[1744348971081,5.5977,1543.0,1542.9,0.00970968]
[1744348972192,2.3899,1543.0,1542.9,0.00970968]
[1744348973989,2.3899,1543.0,1542.9,1.30697968]
[1744348975485,2.3899,1543.0,1542.9,0.00970968]
[1744348975794,2.3899,1543.0,1542.9,1.30697968]
[1744348976185,2.3899,1543.0,1542.9,0.00970968]
[1744348977893,2.3899,1543.0,1542.9,1.30697968]
[1744348978893,1.5958,1543.0,1542.9,3.84047968]
[1744348980189,1.5958,1543.0,1542.9,1.30697968]
[1744348980585,1.5958,1543.0,1542.9,2.91217968]
[1744348980988,2.4101,1543.0,1542.9,1.30697968]
[1744348982394,1.5958,1543.0,1542.9,2.91217968]
[1744348982793,1.5958,1543.0,1542.9,8.90417968]
[1744348983096,0.82400968,1543.2,1543.1,1.2971]
[1744348983401,1.64480968,1543.2,1543.1,1.2971]
[1744348984092,1.64480968,1543.2,1543.0,1.6052]
[1744348984394,3.2078,1543.1,1542.9,7.29894968]
[1744348984599,4.7844,1543.1,1542.9,7.29894968]
[1744348984897,1.5766,1543.0,1542.9,7.29894968]
[1744348985296,1.5766,1543.0,1542.9,6.00170968]
[1744348985496,1.5766,1543.0,1542.9,16.13678971]
[1744348985890,7.87378,1543.0,1542.9,16.13678971]
[1744348986090,12.42978,1543.0,1542.9,7.53468971]
[1744348986398,12.42978,1543.0,1542.9,4.92448971]
[1744348990401,1.29727,1542.9,1542.8,0.00970968]
[1744348990591,0.0034026,1542.8,1542.7,42.09742]
[1744348990793,0.7965026,1542.8,1542.7,42.09742]
[1744348990993,2.4457,1542.8,1542.7,1.29743]
[1744348992099,2.4457,1542.8,1542.7,42.09743]
[1744348992303,3.74305,1542.8,1542.7,40.8]
[1744348993698,1.29743,1542.7,1542.6,0.00970968]
[1744348994003,6.15933,1542.7,1542.6,40.80970968]
[1744348995495,4.8619,1542.7,1542.6,42.10722968]
[1744348996002,3.2078,1542.7,1542.6,42.10722968]
[1744348996296,3.2078,1542.7,1542.6,47.10722968]
[1744348996502,3.2078,1542.9,1542.8,1.29729]
[1744348996894,3.2078,1542.9,1542.8,2.98909]
[1744348997903,3.2078,1542.9,1542.8,3.80449]
[1744348998600,5.0496501,1543.2,1542.8,12.0602]
[1744348998897,5.03653782,1543.2,1542.9,1.708]
[1744348999099,5.03653782,1543.2,1543.1,1.2971]
[1744348999706,5.03653782,1543.2,1543.0,1.29712]
[1744349000004,5.03653782,1543.2,1543.1,2.492]
[1744349000302,5.03653782,1543.2,1543.1,3.7891]
[1744349001203,1.58780968,1543.3,1543.1,3.7891]
[1744349001502,1.58780968,1543.3,1543.2,1.708]
[1744349001708,0.00970968,1543.3,1543.2,3.00501]
[1744349002104,0.00970968,1543.3,1543.2,3.81841]
[1744349003404,0.00970968,1543.3,1543.2,12.02621]
[1744349003703,10.07988084,1543.7,1543.6,1.29668]
[1744349003910,12.59985105,1543.8,1543.7,1.29659]
[1744349004105,12.59985105,1543.8,1543.7,2.97749]
[1744349004306,12.59985105,1543.8,1543.7,9.58359]
[1744349004605,12.59985105,1543.8,1543.7,56.37559]
[1744349004805,15.11982126,1544.0,1543.9,1.29643]
[1744349005007,12.62861305,1544.0,1543.9,5.84943]
[1744349005211,12.62861305,1544.0,1543.9,11.84143]
[1744349005707,12.62861305,1544.0,1543.9,13.53473]
[1744349005911,12.62861305,1544.0,1543.9,54.33473]
[1744349007612,12.62861305,1544.0,1543.9,59.33473]
[1744349008312,12.62861305,1544.0,1543.9,54.33473]
[1744349009408,12.62861305,1544.0,1543.9,48.34273]
[1744349009814,0.00970968,1544.1,1544.0,1.29634]
[1744349010014,0.00970968,1544.1,1544.0,3.02254]
[1744349013114,0.00970968,1544.1,1544.0,43.82254]
[1744349014314,0.00970968,1544.1,1544.0,43.392]
[1744349014514,1.71890968,1544.1,1544.0,43.392]
[1744349015106,1.71890968,1544.1,1544.0,44.68834]
[1744349015310,0.00970968,1544.1,1544.0,44.68834]
[1744349024234,0.00970968,1544.1,1544.0,52.89614]
[1744349026233,0.00970968,1544.1,1544.0,47.89614]
[1744349029539,0.00970968,1544.1,1544.0,44.68834]
[1744349029728,0.00970968,1544.1,1544.0,50.68034]
[1744349029929,1.6984,1544.3,1544.2,1.29617]
[1744349030228,1.6984,1544.3,1544.2,5.84217]
[1744349030537,1.6984,1544.3,1544.2,46.64217]
[1744349031745,1.6984,1544.3,1544.2,45.346]
[1744349031937,2.5497,1544.3,1544.2,46.64217]
[1744349035535,1.6984,1544.3,1544.2,46.64217]
[1744349039254,2.5289,1544.3,1544.2,46.64217]
[1744349040342,8.82499,1544.3,1544.2,45.346]
[1744349040547,12.03279,1544.3,1544.2,40.8]
[1744349041345,1.29629,1544.1,1543.9,1.29642]
[1744349041546,4.0094,1544.0,1543.9,1.29642]
[1744349041747,4.0094,1544.0,1543.9,42.09642]
[1744349042351,4.813,1544.0,1543.9,42.09642]
[1744349044151,4.813,1544.0,1543.9,43.72272]
[1744349044344,3.2078,1544.0,1543.9,44.50962]
[1744349046449,4.7958,1544.0,1543.9,42.09642]
[1744349046753,4.7958,1544.0,1543.9,40.8]
[1744349047152,6.3646,1544.0,1543.9,40.8]
[1744349047653,6.3646,1544.0,1543.9,42.09643]
[1744349047950,6.3646,1544.0,1543.9,40.8]
[1744349048152,6.3646,1544.0,1543.9,42.09643]
[1744349048549,6.3646,1544.0,1543.9,43.67933]
[1744349049056,6.3646,1544.0,1543.9,42.09643]
[1744349049853,3.2078,1544.3,1544.2,1.29613]
[1744349050146,4.0441,1544.3,1544.1,1.29622]
[1744349050353,1.5999,1544.2,1544.0,0.7901]
[1744349050649,0.8619,1544.1,1544.0,2.08644]
[1744349051053,0.8619,1544.1,1544.0,42.88644]
[1744349052350,1.5999,1544.2,1544.1,1.29626]
[1744349052553,1.5999,1544.2,1544.1,2.88416]
[1744349052849,5.7406,1544.3,1544.2,1.29617]
[1744349053154,5.7406,1544.3,1544.2,2.88407]
[1744349053644,3.2078,1544.3,1544.2,2.88407]
[1744349054349,3.2078,1544.3,1544.2,7.42707]
[1744349054748,0.00970968,1544.4,1544.3,1.29609]
[1744349054953,10.01217424,1544.6,1544.5,1.29592]
[1744349055254,10.01217424,1544.6,1544.5,49.84572]
[1744349055444,10.01217424,1544.6,1544.5,54.84572]
[1744349056547,0.00647312,1544.7,1544.6,1.29584]
[1744349056853,0.00647312,1544.7,1544.6,3.76684]
[1744349058746,12.53114623,1544.9,1544.8,1.29567]
[1744349058949,24.20871126,1545.9,1545.2,1.29534]
[1744349058950,18.32762126,1545.9,1545.2,1.29534]
[1744349059259,1.5668,1545.6,1545.3,11.1007]
[1744349059455,1.5668,1545.6,1545.5,1.29508]
[1744349059651,1.5668,1545.6,1545.4,5.83712]
[1744349060152,1.5668,1545.6,1545.4,4.542]
[1744349060647,1.5668,1545.6,1545.5,1.29508]
[1744349061655,14.24219766,1545.6,1545.5,1.29508]
[1744349062856,14.24219766,1545.6,1545.4,5.8371]
[1744349063055,1.7029,1545.5,1545.4,5.8371]
[1744349063555,1.7029,1545.5,1545.3,7.75850968]
[1744349063556,7.5714,1545.5,1545.3,7.75850968]
[1744349063855,0.8522,1545.4,1545.3,4.55070968]
[1744349064053,2.5551,1545.4,1545.3,0.00970968]
[1744349064456,2.5551,1545.4,1545.3,1.30495968]
[1744349065154,2.5551,1545.4,1545.3,0.00970968]
[1744349065459,8.85027,1545.4,1545.3,0.00970968]
[1744349066655,7.5551,1545.4,1545.3,0.00970968]
[1744349067564,2.5551,1545.4,1545.3,1.30495968]
[1744349067764,1.7029,1545.4,1545.3,1.30495968]
[1744349067962,0.8573,1545.7,1545.6,1.295]
[1744349068163,3.3642,1545.7,1545.6,1.295]
[1744349068761,8.3642,1545.7,1545.3,3.21750968]
[1744349068959,4.9245,1545.6,1545.3,1.30492968]
[1744349069157,2.9006,1545.5,1545.3,1.30492968]
[1744349069363,3.2078,1545.4,1545.3,1.30495968]
[1744349069659,2.3957,1545.4,1545.3,1.30495968]
[1744349074967,2.3957,1545.4,1545.3,2.94285968]
[1744349076467,3.2078,1545.6,1545.5,1.29508]
[1744349076779,5.6994,1545.6,1545.5,1.29508]
[1744349077262,2.4916,1545.6,1545.5,1.29508]
[1744349080361,3.78661,1545.6,1545.4,1.29512]
[1744349080560,1.6446,1545.5,1545.4,1.29512]
[1744349082871,2.93972,1545.5,1545.3,9.05173968]
[1744349083169,2.93974,1545.5,1545.3,9.05173968]
[1744349083365,2.93937,1545.4,1545.3,3.21750968]
[1744349083571,11.14717,1545.4,1545.3,0.00970968]
[1744349084277,9.852,1545.4,1545.3,1.30495968]
[1744349085166,3.2078,1545.6,1545.5,1.29502]
[1744349085360,5.35734,1545.6,1545.4,1.29511]
[1744349085566,1.29514,1545.5,1545.3,1.30491968]
[1744349085969,1.29514,1545.5,1545.3,0.00970968]
[1744349086369,5.35738,1545.6,1545.4,1.29517]
[1744349086570,2.99688,1545.5,1545.4,1.29517]
[1744349086767,1.7018,1545.5,1545.4,1.29517]
[1744349088776,1.7018,1545.5,1545.4,3.01357]
[1744349091680,1.7018,1545.5,1545.4,1.29517]
[1744349092377,1.7018,1545.5,1545.4,3.02587]
[1744349094183,4.0623,1545.6,1545.5,1.29508]
[1744349095084,5.6694,1545.6,1545.5,1.29508]
[1744349097586,2.4616,1545.6,1545.5,1.29508]
[1744349100184,3.2078,1545.8,1545.7,1.29492]
[1744349100778,3.2078,1545.8,1545.7,2.93002]
[1744349101383,3.2078,1545.8,1545.7,43.73002]
[1744349102083,3.3552,1545.9,1545.8,1.29483]
[1744349102285,11.37341865,1546.1,1545.8,2.92993]
[1744349102484,1.6787,1546.0,1545.8,2.92993]
[1744349102990,1.6787,1546.0,1545.9,1.29475]
[1744349103183,1.6787,1546.0,1545.9,1.673]
[1744349103487,2.97337,1546.0,1545.8,1.29477]
[1744349103884,1.6787,1545.9,1545.8,1.29477]
[1744349104086,1.6787,1545.9,1545.8,2.96777]
[1744349104984,6.6787,1545.9,1545.4,21.19462005]
[1744349105185,2.94817,1545.8,1545.6,1.295]
[1744349105382,1.29493,1545.7,1545.5,2.96806]
[1744349105582,3.00163,1545.7,1545.5,43.76806]
[1744349105789,1.7067,1545.7,1545.6,1.295]
[1744349105990,1.7067,1545.7,1545.5,42.473]
[1744349106691,1.7067,1545.7,1545.6,1.295]
[1744349107893,3.00162,1545.7,1545.6,1.295]
[1744349108088,1.295,1545.6,1545.5,40.8]
[1744349108284,1.7067,1545.6,1545.5,40.8]
[1744349108582,1.7067,1545.6,1545.5,42.09508]
[1744349109083,2.94817,1545.8,1545.5,42.4374]
[1744349109387,1.7325,1545.7,1545.6,2.9324]
[1744349113080,1.6533,1545.8,1545.7,1.29492]
[1744349113284,3.3863,1545.8,1545.7,2.95262]
[1744349113891,13.28658865,1546.1,1546.0,1.29467]
[1744349114088,15.01958865,1546.1,1546.0,1.29467]
[1744349116083,15.01958865,1546.1,1545.9,2.95238]
[1744349116285,15.01958865,1546.1,1546.0,1.29467]
[1744349116485,15.01958865,1546.1,1546.0,3.02367]
[1744349116987,4.9408,1546.1,1546.0,3.02367]
[1744349119996,3.2078,1546.3,1546.0,12.55567]
[1744349120204,3.2078,1546.3,1546.2,1.2945]
[1744349120800,3.2078,1546.3,1546.2,2.9125]
[1744349121800,3.2078,1546.3,1546.2,1.618]
[1744349121991,4.9033,1546.3,1546.2,2.9125]
[1744349123811,3.2078,1546.3,1546.2,2.9125]
[1744349124004,4.8276,1546.3,1546.2,2.9125]
[1744349129324,1.6198,1546.3,1546.2,2.9125]
[1744349129516,4.8276,1546.3,1546.2,2.9125]
[1744349133521,1.2945,1546.2,1546.1,0.00970968]
[1744349133722,4.4855,1546.2,1546.1,0.00970968]
[1744349135026,9.4855,1546.2,1546.1,0.00970968]
[1744349135823,4.4855,1546.2,1546.1,0.00970968]
[1744349149741,4.4855,1546.2,1546.1,1.30428968]
[1744349150036,4.4855,1546.2,1546.1,2.41410968]
[1744349151740,7.6933,1546.2,1546.1,2.41410968]
[1744349151942,7.6933,1546.2,1546.1,3.70868968]
[1744349153537,6.3988,1546.2,1546.1,3.70868968]
[1744349154438,4.7964,1546.2,1546.1,3.70868968]
[1744349155941,6.0909,1546.2,1546.1,2.41410968]
[1744349156133,6.0909,1546.2,1546.1,3.70868968]
[1744349156440,6.0909,1546.2,1546.1,2.41410968]
[1744349160751,6.0909,1546.2,1546.1,1.58180968]
[1744349161246,6.0909,1546.2,1546.1,0.00970968]
[1744349165054,11.0909,1546.2,1546.1,0.00970968]
[1744349165254,15.6199,1546.2,1546.1,0.00970968]
[1744349165755,25.69868865,1546.2,1546.1,0.00970968]
[1744349168458,20.69868865,1546.2,1546.1,0.00970968]
[1744349169157,20.69868865,1546.2,1546.1,1.66860968]
[1744349169356,23.21782276,1546.2,1546.1,1.66860968]
[1744349169556,14.18652276,1546.2,1546.1,2.96318968]
[1744349169759,12.59792276,1546.2,1546.1,2.96318968]
[1744349170354,15.80572276,1546.2,1546.1,2.96318968]
[1744349171759,12.59792276,1546.2,1546.1,7.96318968]
[1744349171959,15.80572276,1546.2,1546.1,12.49218968]
[1744349172160,12.59792276,1546.2,1546.1,12.49218968]
[1744349172566,14.67698678,1546.4,1546.2,1.29447]
[1744349172760,14.67698678,1546.4,1546.3,2.4104]
[1744349172958,14.67698678,1546.4,1546.3,3.2068]
[1744349173465,16.34698678,1546.4,1546.3,3.2068]
[1744349173661,14.67698678,1546.4,1546.3,3.2068]
[1744349173866,10.17485678,1546.4,1546.3,9.50121]
[1744349174557,10.17485678,1546.4,1546.3,12.70901]
[1744349175364,10.17485678,1546.4,1546.3,19.22477674]
[1744349176164,8.87035678,1546.4,1546.3,19.22477674]
[1744349176465,12.59792276,1546.5,1546.4,1.29433]
[1744349176767,12.59792276,1546.5,1546.4,54.71546034]
[1744349176961,12.59792276,1546.5,1546.4,59.71546034]
[1744349177467,10.16638561,1546.8,1546.7,1.29408]
[1744349177767,10.16638561,1546.8,1546.7,5.81908]
[1744349178266,10.16638561,1546.8,1546.7,7.42588]
[1744349178666,10.16638561,1546.8,1546.7,13.41788]
[1744349178863,12.59792276,1546.9,1546.8,1.294]
[1744349179072,12.59792276,1546.9,1546.8,12.1823]
[1744349179263,12.59792276,1546.9,1546.8,57.9823]
[1744349179569,12.59792276,1546.9,1546.8,58.0941]
[1744349182073,5.8095,1547.4,1547.3,1.29358]
[1744349182274,3.2078,1547.4,1547.3,1.29358]
[1744349182662,3.2078,1547.4,1547.3,2.86138]
[1744349183261,2.4541,1547.6,1547.5,1.29341]
[1744349184178,2.4541,1547.6,1547.4,2.86123]
[1744349184665,1.29346,1547.5,1547.2,4.53270968]
[1744349184871,4.8732,1547.5,1547.3,2.99573]
[1744349185588,4.8732,1547.5,1547.4,1.7022]
[1744349185992,4.8732,1547.5,1547.4,2.99569]
[1744349186292,4.8732,1547.5,1547.4,1.7022]
[1744349186789,4.8732,1547.5,1547.4,2.99569]
[1744349187188,1.6654,1547.5,1547.4,2.99569]
[1744349187689,3.2078,1547.8,1547.6,1.2933]
[1744349187991,6.95948,1547.8,1547.5,8.20733]
[1744349188188,1.6082,1547.7,1547.6,1.5731]
[1744349188689,2.4661,1547.7,1547.6,1.5731]
[1744349188894,2.4661,1547.7,1547.5,6.63423]
[1744349189192,4.816,1547.6,1547.5,5.81533]
[1744349189382,6.10937,1547.6,1547.4,1.29342]
[1744349189684,2.4585,1547.5,1547.4,1.29342]
[1744349189884,3.75194,1547.5,1547.3,8.20755]
[1744349190085,2.4007,1547.4,1547.3,8.20755]
[1744349191592,1.6082,1547.4,1547.3,8.20755]
[1744349191795,0.8503,1547.5,1547.4,1.29349]
[1744349192093,2.5512,1547.5,1547.4,2.94549]
[1744349192692,3.84463,1547.5,1547.3,1.29353]
[1744349192887,2.4934,1547.4,1547.3,1.29353]
[1744349193881,0.7925,1547.4,1547.3,1.29353]
[1744349194084,1.5987,1547.7,1547.6,1.29333]
[1744349194592,2.45,1547.7,1547.6,1.29333]
[1744349194996,2.45,1547.7,1547.6,2.99693]
[1744349195796,3.74324,1547.7,1547.5,1.29337]
[1744349195998,2.4069,1547.6,1547.5,1.29337]
[1744349196296,6.90805,1547.6,1547.4,1.29346]
[1744349196489,1.5987,1547.5,1547.4,1.29346]
[1744349197087,2.89213,1547.5,1547.3,1.29352]
[1744349197295,0.8542,1547.4,1547.3,1.29352]
[1744349197595,2.4929,1547.4,1547.3,2.97782]
[1744349197794,4.016,1547.6,1547.3,1.6843]
[1744349197993,4.016,1547.6,1547.5,1.29341]
[1744349198402,2.4469,1547.6,1547.5,1.29341]
[1744349201202,3.74024,1547.6,1547.4,2.97775]
[1744349201503,1.5899,1547.5,1547.4,2.97775]
[1744349201901,1.5899,1547.5,1547.4,1.29345]
[1744349202095,1.5899,1547.5,1547.3,1.6612]
[1744349202295,0.8178,1547.4,1547.3,1.6612]
[1744349202495,0.8178,1547.4,1547.3,2.95478]
[1744349202802,0.8178,1547.4,1547.3,1.29358]
[1744349203400,0.8178,1547.4,1547.3,2.95648]
[1744349204603,1.5899,1547.5,1547.3,1.6629]
[1744349204801,1.5899,1547.5,1547.4,1.29349]
[1744349205303,3.2078,1547.7,1547.4,8.23368]
[1744349205496,0.8331,1547.9,1547.8,1.29316]
[1744349205693,3.2078,1548.3,1547.8,4.518]
[1744349205899,2.5431,1548.2,1547.9,2.4817]
[1744349206100,1.71,1548.1,1547.9,2.49140968]
[1744349206302,1.71,1548.1,1548.0,1.29299]
[1744349207191,5.7509,1548.5,1548.3,1.29274]
[1744349207394,1.71,1548.4,1548.2,1.29283]
[1744349207592,1.71,1548.4,1548.1,5.81086]
[1744349207791,4.50057,1548.3,1548.1,5.81086]
[1744349208004,1.71,1548.2,1548.1,5.81086]
[1744349208205,2.4943,1548.2,1548.1,5.81086]
[1744349209706,3.78713,1548.2,1548.1,4.518]
[1744349209907,2.4943,1548.2,1548.1,4.518]
[1744349210097,2.4943,1548.2,1548.1,5.81091]
[1744349210298,2.4943,1548.2,1548.1,1.29291]
[1744349210907,3.78714,1548.2,1548.0,1.29299]
[1744349211109,1.6573,1548.1,1548.0,1.29299]
[1744349211608,11.15801,1548.1,1547.9,47.45521968]
[1744349211808,6.15801,1548.1,1547.9,42.10271968]
[1744349212106,1.6564,1548.0,1547.9,42.10271968]
[1744349213104,7.94939,1548.0,1547.9,0.00970968]
[1744349213410,8.81269,1548.0,1547.9,0.00970968]
[1744349214208,3.81269,1548.0,1547.9,0.00970968]
[1744349214416,2.5197,1548.0,1547.9,1.30278968]
[1744349215309,2.5197,1548.0,1547.9,0.00970968]
[1744349215610,1.6564,1548.0,1547.9,0.00970968]
[1744349216006,1.6564,1548.0,1547.9,1.30278968]
[1744349216311,5.28498,1548.2,1548.0,1.29296]
[1744349216511,1.6414,1548.1,1548.0,1.29299]
[1744349217307,3.9921,1548.2,1548.1,1.29291]
[1744349217606,3.9921,1548.2,1548.1,2.97611]
[1744349218114,5.5768,1548.2,1548.1,2.97611]
[1744349218310,2.369,1548.2,1548.1,2.97611]
[1744349219612,0.7843,1548.2,1548.1,2.97611]
[1744349220815,2.369,1548.2,1548.1,2.97611]
[1744349221108,2.369,1548.2,1548.0,0.8071]
[1744349221315,1.29291,1548.1,1548.0,2.4278]
[1744349221506,2.96541,1548.1,1548.0,2.4278]
[1744349221905,2.96541,1548.1,1548.0,3.72079]
[1744349222415,0.7843,1548.2,1548.1,1.29291]
[1744349222815,0.7843,1548.2,1548.1,2.91361]
[1744349223016,2.4568,1548.2,1548.1,2.91361]
[1744349223212,3.74963,1548.2,1548.0,2.10003]
[1744349223409,2.96541,1548.1,1548.0,2.10003]
[1744349223709,1.6725,1548.1,1548.0,2.10003]
[1744349224720,1.6725,1548.1,1548.0,2.10009]
[1744349225104,6.17321,1548.1,1548.0,2.10009]
[1744349225309,6.17321,1548.1,1548.0,0.8071]
[1744349225515,6.17321,1548.1,1547.9,2.92342968]
[1744349225718,1.6035,1548.0,1547.9,2.92342968]
[1744349227011,2.89649,1548.0,1547.9,1.30272968]
[1744349227205,1.6035,1548.0,1547.9,1.30272968]
[1744349227411,1.6035,1548.0,1547.9,3.02792968]
[1744349228320,1.6035,1548.0,1547.9,3.02798968]
[1744349228523,4.50061,1548.3,1548.1,1.29285]
[1744349228911,4.50061,1548.3,1548.2,1.7252]
[1744349229519,4.50061,1548.3,1548.1,1.29285]
[1744349229723,1.6045,1548.2,1547.9,0.00970968]
[1744349230020,4.50077,1548.1,1547.9,1.30273968]
[1744349230220,4.50077,1548.1,1547.9,2.88721968]
[1744349230422,1.6511,1548.0,1547.9,2.88721968]
[1744349231017,2.94409,1548.0,1547.9,0.00970968]
[1744349231224,3.79229,1548.0,1547.9,0.00970968]
[1744349231516,2.4993,1548.0,1547.9,1.30278968]
[1744349231722,1.6511,1548.0,1547.9,1.30278968]
[1744349231918,1.6511,1548.0,1547.9,3.69718968]
[1744349232227,1.6511,1548.0,1547.9,2.40410968]
[1744349232522,1.6511,1548.0,1547.9,3.69718968]
[1744349233024,3.2078,1548.3,1547.9,2.40410968]
[1744349233317,4.7976,1548.3,1548.2,1.29283]
[1744349234208,4.7976,1548.3,1548.2,2.09553]
[1744349235421,6.09034,1548.3,1548.2,0.8027]
[1744349235925,6.09034,1548.3,1548.2,2.09553]
[1744349236426,4.7976,1548.3,1548.2,2.09553]
[1744349241728,1.5898,1548.3,1548.2,2.09553]
[1744349242324,2.4305,1548.3,1548.2,2.09553]
[1744349242828,2.4305,1548.3,1548.2,3.67763]
[1744349245627,13.87017,1548.3,1548.0,1.29298]
[1744349245825,4.50076,1548.1,1547.9,5.81872968]
[1744349246029,3.82489,1548.0,1547.9,0.00970968]
[1744349246223,4.61099,1548.0,1547.9,0.00970968]
[1744349246831,3.318,1548.0,1547.9,1.30278968]
[1744349248324,4.61099,1548.0,1547.9,1.30278968]
[1744349248930,3.318,1548.0,1547.9,1.30278968]
[1744349249430,3.2078,1548.5,1548.0,3.23249]
[1744349249733,18.32762126,1548.9,1548.4,3.23165]
[1744349249930,18.32762126,1548.9,1548.5,46.1607]
[1744349249931,20.68982126,1548.9,1548.5,46.1607]
[1744349250128,2.86719,1548.8,1548.5,49.03615]
[1744349250430,1.5748,1548.7,1548.5,49.03611]
[1744349250729,4.7826,1548.7,1548.6,2.87539]
[1744349252732,6.07501,1548.7,1548.5,47.4532]
[1744349252933,2.4805,1548.6,1548.5,47.4532]
[1744349253229,3.2078,1548.7,1548.5,46.1607]
[1744349253434,3.2078,1548.7,1548.6,2.93409]
[1744349253733,15.11982126,1548.9,1548.7,1.29235]
[1744349253935,15.11982126,1548.9,1548.8,1.29232]
[1744349254226,15.11982126,1548.9,1548.8,15.00612]
[1744349254227,13.10099126,1548.9,1548.8,15.00612]
[1744349254427,11.87266126,1548.9,1548.8,20.00612]
[1744349254632,10.56956126,1548.9,1548.8,22.20964192]
[1744349254932,2.80082126,1548.9,1548.8,22.20964192]
[1744349255133,17.63979147,1549.4,1549.3,1.29191]
[1744349255329,17.63979147,1549.4,1549.3,9.01371]
[1744349255632,17.63979147,1549.4,1549.3,14.01371]
[1744349255832,17.63979147,1549.4,1549.3,9.01371]
[1744349256332,17.63979147,1549.4,1549.3,14.01371]
[1744349257329,16.25670147,1549.4,1549.3,14.01371]
[1744349258029,16.25670147,1549.4,1549.3,15.63771]
[1744349258537,16.25670147,1549.4,1549.3,16.62971]
[1744349259034,24.3760319,1549.6,1549.5,1.29174]
[1744349259035,1.6963,1549.6,1549.5,1.29174]
[1744349259333,1.68321849,1549.6,1549.5,1.29174]
[1744349260236,1.68321849,1549.6,1549.3,9.3458]
[1744349260531,1.29182,1549.4,1549.1,14.6675041]
[1744349260732,5.29469,1549.5,1549.2,5.80299]
[1744349261129,5.29469,1549.5,1549.2,1.29199]
[1744349262030,1.29183,1549.4,1549.2,1.29199]
[1744349262234,4.0029,1549.5,1549.2,1.29199]
[1744349262437,3.2078,1549.3,1549.1,2.91862]
[1744349262734,1.6386,1549.2,1549.1,2.91862]
[1744349264137,0.7951,1549.5,1549.1,1.6266]
[1744349264342,1.6074,1549.4,1549.2,1.5865]
[1744349265038,1.6074,1549.4,1549.3,1.29189]
[1744349265337,4.8152,1549.4,1549.2,2.87844]
[1744349265631,6.10702,1549.4,1549.2,2.87844]
[1744349265837,1.6074,1549.3,1549.2,2.87844]
[1744349267540,1.6074,1549.3,1549.2,6.08624]
[1744349268840,0.7951,1549.5,1549.4,1.29182]
[1744349269045,0.78201849,1549.5,1549.4,1.29182]
[1744349269437,2.07376849,1549.5,1549.3,2.90203]
[1744349270046,4.49962,1549.4,1549.0,4.511]
[1744349270237,4.49962,1549.4,1549.2,1.29195]
[1744349270238,6.06473,1549.4,1549.2,1.29195]
[1744349270433,1.5651,1549.3,1549.2,1.29195]
[1744349271634,2.3845,1549.3,1549.2,1.29195]
[1744349272136,3.67643,1549.3,1549.1,1.29206]
[1744349272441,1.5651,1549.2,1549.1,1.29207]
[1744349273541,1.5651,1549.2,1549.1,2.96097]
[1744349273934,9.7729,1549.2,1548.7,0.00970968]
[1744349274129,1.29218,1549.0,1548.8,1.2923]
[1744349274334,1.29218,1549.0,1548.7,2.97094968]
[1744349274541,1.679,1548.9,1548.8,1.29232]
[1744349274835,1.679,1548.9,1548.7,2.97098968]
[1744349275240,2.4699,1548.9,1548.7,2.97098968]
[1744349275537,2.4699,1548.9,1548.8,1.29232]
[1744349276245,3.76215,1548.9,1548.7,2.97098968]
[1744349276436,1.6168,1548.8,1548.7,0.00970968]
[1744349276835,1.6168,1548.8,1548.7,1.30211968]
[1744349278339,2.08314,1548.9,1548.8,1.29232]
[1744349278340,0.7909,1548.9,1548.8,1.29232]
[1744349278536,0.7909,1548.9,1548.8,2.99272]
[1744349279359,1.6168,1549.0,1548.9,1.29224]
[1744349279545,1.6168,1549.0,1548.9,2.99514]
[1744349283149,0.8218,1549.1,1549.0,1.29216]
[1744349283346,0.8218,1549.1,1549.0,2.98266]
[1744349284551,3.2078,1549.4,1548.8,16.93961]